fUSD/lending_fUSD_20260614
["ID","MTS","AMOUNT","RATE_DAILY","PERIOD"]
[425055860,1781447500000,-500.0,0.00029041,8]
[425055862,1781447500000,-500.0,0.00029041,8]
[425055864,1781447500000,-1016.47,0.00029041,8]
[425055863,1781447500000,-500.0,0.00029041,8]
[425055870,1781447500000,-856.87,0.00029041,8]
[425055837,1781447500000,-500.0,0.00029041,8]
[425055855,1781447500000,-500.0,0.00029041,8]
[425055841,1781447500000,-500.0,0.00029041,8]
[425055828,1781447500000,-1362.07,0.00029041,8]
[425055848,1781447500000,-1329.36,0.00029041,8]
[425055869,1781447500000,-500.0,0.00029041,8]
[425055813,1781447500000,-1236.08,0.00029041,8]
[425055815,1781447500000,-615.84589281,0.00029041,8]
[425055817,1781447500000,-500.0,0.00029041,8]
[425055814,1781447500000,-500.0,0.00029041,8]
[425055818,1781447500000,-1086.15,0.00029041,8]
[425055816,1781447500000,-500.0,0.00029041,8]
[425055821,1781447500000,-1794.38,0.00029041,8]
[425055820,1781447500000,-500.0,0.00029041,8]
[425055819,1781447500000,-500.0,0.00029041,8]
[425055823,1781447500000,-500.0,0.00029041,8]
[425055824,1781447500000,-500.0,0.00029041,8]
[425055822,1781447500000,-752.56,0.00029041,8]
[425055825,1781447500000,-500.0,0.00029041,8]
[425055827,1781447500000,-500.0,0.00029041,8]
[425055829,1781447500000,-1214.87,0.00029041,8]
[425055836,1781447500000,-932.78,0.00029041,8]
[425055826,1781447500000,-500.0,0.00029041,8]
[425055830,1781447500000,-712.15,0.00029041,8]
[425055831,1781447500000,-658.12,0.00029041,8]
[425055833,1781447500000,-500.0,0.00029041,8]
[425055835,1781447500000,-556.38,0.00029041,8]
[425055832,1781447500000,-500.0,0.00029041,8]
[425055834,1781447500000,-710.6,0.00029041,8]
[425055838,1781447500000,-1530.48,0.00029041,8]
[425055839,1781447500000,-500.0,0.00029041,8]
[425055866,1781447500000,-1038.13,0.00029041,8]
[425055865,1781447500000,-500.0,0.00029041,8]
[425055909,1781447500000,-657.48,0.00029041,8]
[425055902,1781447500000,-525.99437118,0.00029041,8]
[425055904,1781447500000,-1150.58,0.00029041,8]
[425055899,1781447500000,-500.0,0.00029041,8]
[425055903,1781447500000,-500.0,0.00029041,8]
[425055907,1781447500000,-532.23,0.00029041,8]
[425055916,1781447500000,-500.0,0.00029041,8]
[425055915,1781447500000,-835.21,0.00029041,8]
[425055906,1781447500000,-500.0,0.00029041,8]
[425055908,1781447500000,-500.0,0.00029041,8]
[425055913,1781447500000,-500.0,0.00029041,8]
[425055912,1781447500000,-500.0,0.00029041,8]
[425055910,1781447500000,-564.84,0.00029041,8]
[425055914,1781447500000,-2000.0,0.00029041,2]
[425055911,1781447500000,-648.15,0.00029041,8]
[425055917,1781447500000,-500.0,0.00029041,8]
[425055920,1781447500000,-500.0,0.00029041,8]
[425055919,1781447500000,-880.78,0.00029041,8]
[425055918,1781447500000,-500.0,0.00029041,8]
[425055922,1781447500000,-3014.18,0.00029041,8]
[425055923,1781447500000,-500.0,0.00029041,8]
[425055921,1781447500000,-616.02,0.00029041,8]
[425055925,1781447500000,-500.0,0.00029041,8]
[425055924,1781447500000,-500.0,0.00029041,8]
[425055867,1781447500000,-500.0,0.00029041,8]
[425055926,1781447500000,-500.0,0.00029041,8]
[425055900,1781447500000,-500.0,0.00029041,8]
[425055898,1781447500000,-815.38,0.00029041,8]
[425055905,1781447500000,-500.0,0.00029041,8]
[425055897,1781447500000,-729.66,0.00029041,8]
[425055871,1781447500000,-565.44,0.00029041,8]
[425055874,1781447500000,-500.0,0.00029041,8]
[425055879,1781447500000,-1514.46,0.00029041,8]
[425055875,1781447500000,-500.0,0.00029041,8]
[425055873,1781447500000,-500.0,0.00029041,8]
[425055872,1781447500000,-597.59,0.00029041,8]
[425055876,1781447500000,-1068.73,0.00029041,8]
[425055882,1781447500000,-944.34,0.00029041,8]
[425055901,1781447500000,-500.0,0.00029041,8]
[425055878,1781447500000,-500.0,0.00029041,8]
[425055880,1781447500000,-663.09,0.00029041,8]
[425055877,1781447500000,-657.3,0.00029041,8]
[425055884,1781447500000,-500.0,0.00029041,8]
[425055894,1781447500000,-631.21,0.00029041,8]
[425055881,1781447500000,-500.0,0.00029041,8]
[425055895,1781447500000,-500.0,0.00029041,8]
[425055886,1781447500000,-1042.52,0.00029041,8]
[425055887,1781447500000,-881.04,0.00029041,8]
[425055885,1781447500000,-500.0,0.00029041,8]
[425055889,1781447500000,-642.31,0.00029041,8]
[425055888,1781447500000,-500.0,0.00029041,8]
[425055892,1781447500000,-500.0,0.00029041,8]
[425055890,1781447500000,-702.19,0.00029041,8]
[425055896,1781447500000,-500.0,0.00029041,8]
[425055893,1781447500000,-845.18,0.00029041,8]
[425055891,1781447500000,-500.0,0.00029041,8]
[425055883,1781447500000,-675.87,0.00029041,8]
[425055975,1781447501000,-500.0,0.00029041,8]
[425055973,1781447501000,-592.38,0.00029041,8]
[425055974,1781447501000,-500.0,0.00029041,8]
[425055972,1781447501000,-1701.25,0.00029041,8]
[425055964,1781447501000,-500.0,0.00029041,8]
[425055955,1781447501000,-920.43,0.00029041,8]
[425055956,1781447501000,-1059.33,0.00029041,8]
[425055961,1781447501000,-500.0,0.00029041,8]
[425055957,1781447501000,-500.0,0.00029041,8]
[425055958,1781447501000,-509.71,0.00029041,8]
[425055969,1781447501000,-500.0,0.00029041,8]
[425055960,1781447501000,-158.75340394,0.00029041,8]
[425055967,1781447501000,-500.0,0.00029041,8]
[425055977,1781447501000,-558.94,0.00029041,8]
[425055968,1781447501000,-500.0,0.00029041,8]
[425055971,1781447501000,-674.5,0.00029041,8]
[425055966,1781447501000,-500.0,0.00029041,8]
[425055965,1781447501000,-2667.75,0.00029041,8]
[425055970,1781447501000,-500.0,0.00029041,8]
[425055988,1781447501000,-2238.28,0.00029041,8]
[425055978,1781447501000,-500.0,0.00029041,8]
[425055981,1781447501000,-500.0,0.00029041,8]
[425055982,1781447501000,-500.0,0.00029041,8]
[425055979,1781447501000,-463.53232501,0.00029041,8]
[425055985,1781447501000,-702.01,0.00029041,8]
[425055962,1781447501000,-605.61,0.00029041,8]
[425055976,1781447501000,-1169.04,0.00029041,8]
[425055959,1781447501000,-662.85,0.00029041,8]
[425055928,1781447501000,-500.0,0.00029041,8]
[425055963,1781447501000,-698.01,0.00029041,8]
[425055927,1781447501000,-500.0,0.00029041,8]
[425055940,1781447501000,-1539.52,0.00029041,8]
[425055930,1781447501000,-869.12,0.00029041,8]
[425055929,1781447501000,-528.92606095,0.00029041,8]
[425055931,1781447501000,-992.68,0.00029041,8]
[425055933,1781447501000,-500.0,0.00029041,8]
[425055932,1781447501000,-500.0,0.00029041,8]
[425055937,1781447501000,-500.0,0.00029041,8]
[425055936,1781447501000,-500.0,0.00029041,8]
[425055934,1781447501000,-1461.98,0.00029041,8]
[425055938,1781447501000,-3250.13,0.00029041,8]
[425055939,1781447501000,-500.0,0.00029041,8]
[425055952,1781447501000,-743.01,0.00029041,8]
[425055935,1781447501000,-500.0,0.00029041,8]
[425055943,1781447501000,-500.0,0.00029041,8]
[425055947,1781447501000,-692.78,0.00029041,8]
[425055945,1781447501000,-500.0,0.00029041,8]
[425055942,1781447501000,-500.0,0.00029041,8]
[425055944,1781447501000,-870.51,0.00029041,8]
[425055948,1781447501000,-500.0,0.00029041,8]
[425055946,1781447501000,-500.0,0.00029041,8]
[425055951,1781447501000,-1661.43,0.00029041,8]
[425055949,1781447501000,-540.29,0.00029041,8]
[425055950,1781447501000,-500.0,0.00029041,8]
[425055953,1781447501000,-553.44,0.00029041,8]
[425055954,1781447501000,-500.0,0.00029041,8]
[425055941,1781447501000,-641.52,0.00029041,8]
[425055984,1781447501000,-720.7,0.00029041,8]
[425056044,1781447501000,-500.0,0.00029041,8]
[425055986,1781447501000,-500.0,0.00029041,8]
[425056020,1781447501000,-877.23,0.00029041,8]
[425056024,1781447501000,-500.0,0.00029041,8]
[425056016,1781447501000,-500.0,0.00029041,8]
[425056021,1781447501000,-546.64,0.00029041,8]
[425056015,1781447501000,-500.0,0.00029041,8]
[425056022,1781447501000,-1056.35,0.00029041,8]
[425056017,1781447501000,-500.0,0.00029041,8]
[425056028,1781447501000,-10759.52,0.00029041,8]
[425056026,1781447501000,-500.0,0.00029041,8]
[425056036,1781447501000,-626.04,0.00029041,8]
[425056025,1781447501000,-940.15,0.00029041,8]
[425056034,1781447501000,-1116.26,0.00029041,8]
[425056019,1781447501000,-500.0,0.00029041,8]
[425056033,1781447501000,-500.0,0.00029041,8]
[425056029,1781447501000,-500.0,0.00029041,8]
[425056030,1781447501000,-679.83,0.00029041,8]
[425056027,1781447501000,-500.0,0.00029041,8]
[425056032,1781447501000,-500.0,0.00029041,8]
[425056037,1781447501000,-500.0,0.00029041,8]
[425056039,1781447501000,-1082.98,0.00029041,8]
[425056043,1781447501000,-4182.59,0.00029041,8]
[425056040,1781447501000,-500.0,0.00029041,8]
[425056038,1781447501000,-704.65,0.00029041,8]
[425056041,1781447501000,-500.0,0.00029041,8]
[425056042,1781447501000,-702.05,0.00029041,8]
[425055980,1781447501000,-500.0,0.00029041,8]
[425056031,1781447501000,-1143.85,0.00029041,8]
[425056023,1781447501000,-500.0,0.00029041,8]
[425056035,1781447501000,-825.79,0.00029041,8]
[425056018,1781447501000,-500.0,0.00029041,8]
[425055983,1781447501000,-605.88,0.00029041,8]
[425056014,1781447501000,-5751.63,0.00029041,8]
[425055987,1781447501000,-502.0,0.00029041,8]
[425055989,1781447501000,-682.04,0.00029041,8]
[425055991,1781447501000,-500.0,0.00029041,8]
[425055998,1781447501000,-580.54,0.00029041,8]
[425055992,1781447501000,-500.0,0.00029041,8]
[425055997,1781447501000,-623.6,0.00029041,8]
[425055995,1781447501000,-2663.08,0.00029041,8]
[425055993,1781447501000,-966.37,0.00029041,8]
[425055990,1781447501000,-500.0,0.00029041,8]
[425055996,1781447501000,-2017.64,0.00029041,8]
[425055999,1781447501000,-500.0,0.00029041,8]
[425056000,1781447501000,-550.82,0.00029041,8]
[425055994,1781447501000,-500.0,0.00029041,8]
[425056011,1781447501000,-500.0,0.00029041,8]
[425056013,1781447501000,-1427.79,0.00029041,8]
[425056001,1781447501000,-500.0,0.00029041,8]
[425056007,1781447501000,-1675.9,0.00029041,8]
[425056009,1781447501000,-1000.0,0.00029041,8]
[425056005,1781447501000,-543.63,0.00029041,8]
[425056008,1781447501000,-500.0,0.00029041,8]
[425056010,1781447501000,-703.84,0.00029041,8]
[425056003,1781447501000,-470.65428091,0.00029041,8]
[425056002,1781447501000,-1157.66,0.00029041,8]
[425056004,1781447501000,-842.22,0.00029041,8]
[425056012,1781447501000,-500.0,0.00029041,8]
[425056006,1781447501000,-500.0,0.00029041,8]
[425056076,1781447502000,-1000.0,0.00029041,8]
[425056087,1781447502000,-25282.9,0.00029041,8]
[425056082,1781447502000,-500.0,0.00029041,8]
[425056081,1781447502000,-1278.35,0.00029041,8]
[425056078,1781447502000,-1407.31,0.00029041,8]
[425056077,1781447502000,-508.2,0.00029041,8]
[425056084,1781447502000,-500.0,0.00029041,8]
[425056079,1781447502000,-1023.6,0.00029041,8]
[425056080,1781447502000,-500.0,0.00029041,8]
[425056083,1781447502000,-500.0,0.00029041,8]
[425056091,1781447502000,-500.0,0.00029041,8]
[425056074,1781447502000,-4001.43,0.00029041,8]
[425056097,1781447502000,-1296.71,0.00029041,8]
[425056106,1781447502000,-1214.13,0.00029041,8]
[425056089,1781447502000,-505.16,0.00029041,8]
[425056093,1781447502000,-500.0,0.00029041,8]
[425056094,1781447502000,-2026.58,0.00029041,8]
[425056095,1781447502000,-500.0,0.00029041,8]
[425056090,1781447502000,-162.30824525,0.00029041,8]
[425056096,1781447502000,-589.03,0.00029041,8]
[425056088,1781447502000,-677.78,0.00029041,8]
[425056098,1781447502000,-557.28,0.00029041,8]
[425056100,1781447502000,-1801.16,0.00029041,8]
[425056107,1781447502000,-595.31,0.00029041,8]
[425056109,1781447502000,-308.09335237,0.00029041,8]
[425056099,1781447502000,-2890.54,0.00029041,8]
[425056086,1781447502000,-563.46,0.00029041,8]
[425056092,1781447502000,-500.0,0.00029041,8]
[425056075,1781447502000,-1749.66,0.00029041,8]
[425056046,1781447502000,-3026.85,0.00029041,8]
[425056073,1781447502000,-1109.22,0.00029041,8]
[425056045,1781447502000,-500.0,0.00029041,8]
[425056047,1781447502000,-500.0,0.00029041,8]
[425056049,1781447502000,-500.0,0.00029041,8]
[425056059,1781447502000,-500.0,0.00029041,8]
[425056051,1781447502000,-500.0,0.00029041,8]
[425056060,1781447502000,-518.74,0.00029041,8]
[425056048,1781447502000,-500.0,0.00029041,8]
[425056050,1781447502000,-500.0,0.00029041,8]
[425056052,1781447502000,-2931.64,0.00029041,8]
[425056055,1781447502000,-742.57,0.00029041,8]
[425056053,1781447502000,-500.0,0.00029041,8]
[425056108,1781447502000,-500.0,0.00029041,8]
[425056058,1781447502000,-500.0,0.00029041,8]
[425056056,1781447502000,-3706.06,0.00029041,8]
[425056057,1781447502000,-528.8,0.00029041,8]
[425056064,1781447502000,-500.0,0.00029041,8]
[425056061,1781447502000,-658.84,0.00029041,8]
[425056070,1781447502000,-529.59,0.00029041,8]
[425056071,1781447502000,-636.66,0.00029041,8]
[425056066,1781447502000,-500.0,0.00029041,8]
[425056062,1781447502000,-500.0,0.00029041,8]
[425056063,1781447502000,-220.93535521,0.00029041,8]
[425056067,1781447502000,-610.83,0.00029041,8]
[425056068,1781447502000,-1282.28,0.00029041,8]
[425056069,1781447502000,-528.7,0.00029041,8]
[425056065,1781447502000,-1682.54,0.00029041,8]
[425056072,1781447502000,-540.32,0.00029041,8]
[425056085,1781447502000,-11664.09,0.00029041,8]
[425056111,1781447502000,-500.0,0.00029041,8]
[425056054,1781447502000,-500.0,0.00029041,8]
[425056102,1781447502000,-1828.15,0.00029041,8]
[425056137,1781447502000,-1357.49,0.00029041,8]
[425056141,1781447502000,-500.0,0.00029041,8]
[425056142,1781447502000,-529.83,0.00029041,8]
[425056144,1781447502000,-500.0,0.00029041,8]
[425056146,1781447502000,-707.83,0.00029041,8]
[425056147,1781447502000,-900.28,0.00029041,8]
[425056145,1781447502000,-839.66,0.00029041,8]
[425056143,1781447502000,-500.0,0.00029041,8]
[425056154,1781447502000,-500.0,0.00029041,8]
[425056148,1781447502000,-500.0,0.00029041,8]
[425056157,1781447502000,-1297.07,0.00029041,8]
[425056156,1781447502000,-500.0,0.00029041,8]
[425056155,1781447502000,-2061.13,0.00029041,8]
[425056158,1781447502000,-649.93,0.00029041,8]
[425056159,1781447502000,-500.0,0.00029041,8]
[425056150,1781447502000,-12728.02,0.00029041,8]
[425056149,1781447502000,-822.75,0.00029041,8]
[425056153,1781447502000,-500.0,0.00029041,8]
[425056151,1781447502000,-500.0,0.00029041,8]
[425056152,1781447502000,-500.0,0.00029041,8]
[425056160,1781447502000,-500.0,0.00029041,8]
[425056163,1781447502000,-1326.3,0.00029041,8]
[425056164,1781447502000,-707.22,0.00029041,8]
[425056162,1781447502000,-500.0,0.00029041,8]
[425056165,1781447502000,-1599.83,0.00029041,8]
[425056166,1781447502000,-640.65,0.00029041,8]
[425056110,1781447502000,-1866.64,0.00029041,8]
[425056140,1781447502000,-878.66,0.00029041,8]
[425056139,1781447502000,-500.0,0.00029041,8]
[425056161,1781447502000,-1057.08,0.00029041,8]
[425056136,1781447502000,-500.0,0.00029041,8]
[425056104,1781447502000,-1343.56,0.00029041,8]
[425056105,1781447502000,-1463.18,0.00029041,8]
[425056101,1781447502000,-500.0,0.00029041,8]
[425056103,1781447502000,-500.0,0.00029041,8]
[425056113,1781447502000,-500.0,0.00029041,8]
[425056112,1781447502000,-500.0,0.00029041,8]
[425056115,1781447502000,-500.0,0.00029041,8]
[425056117,1781447502000,-5973.16,0.00029041,8]
[425056114,1781447502000,-577.98,0.00029041,8]
[425056118,1781447502000,-763.45,0.00029041,8]
[425056119,1781447502000,-500.0,0.00029041,8]
[425056122,1781447502000,-3655.13,0.00029041,8]
[425056121,1781447502000,-500.0,0.00029041,8]
[425056116,1781447502000,-1413.1,0.00029041,8]
[425056134,1781447502000,-2020.73,0.00029041,8]
[425056133,1781447502000,-500.0,0.00029041,8]
[425056120,1781447502000,-1090.91,0.00029041,8]
[425056132,1781447502000,-500.0,0.00029041,8]
[425056130,1781447502000,-1108.18,0.00029041,8]
[425056129,1781447502000,-500.0,0.00029041,8]
[425056128,1781447502000,-605.58,0.00029041,8]
[425056135,1781447502000,-1129.02,0.00029041,2]
[425056138,1781447502000,-500.0,0.00029041,8]
[425056123,1781447502000,-500.0,0.00029041,8]
[425056125,1781447502000,-500.0,0.00029041,8]
[425056126,1781447502000,-2562.95,0.00029041,8]
[425056131,1781447502000,-500.0,0.00029041,8]
[425056124,1781447502000,-3216.2,0.00029041,8]
[425056127,1781447502000,-1440.23,0.00029041,8]
[425056207,1781447503000,-246.24236621,0.00029198,7]
[425056216,1781447503000,-1402.89,0.000292,7]
[425056206,1781447503000,-250.1864153,0.00029198,7]
[425056201,1781447503000,-150.0,0.00029116,2]
[425056198,1781447503000,-323.21,0.00029111,30]
[425056197,1781447503000,-501.0,0.00029095,4]
[425056200,1781447503000,-460.31636326,0.00029116,2]
[425056195,1781447503000,-323.21,0.0002905,7]
[425056199,1781447503000,-328.7,0.00029111,30]
[425056205,1781447503000,-205.57034733,0.00029198,7]
[425056203,1781447503000,-328.7,0.00029172,2]
[425056194,1781447503000,-5871.97,0.00029041,8]
[425056228,1781447503000,-208.73149214,0.00029203,7]
[425056208,1781447503000,-230.65257896,0.00029198,7]
[425056218,1781447503000,-509.99157221,0.00029202,7]
[425056209,1781447503000,-207.55661791,0.00029198,7]
[425056210,1781447503000,-249.08751115,0.00029198,7]
[425056213,1781447503000,-250.28083835,0.00029198,7]
[425056211,1781447503000,-245.15387599,0.00029198,7]
[425056214,1781447503000,-216.08513577,0.00029198,7]
[425056212,1781447503000,-210.72945423,0.00029198,7]
[425056215,1781447503000,-248.26845344,0.00029198,2]
[425056219,1781447503000,-323.64190966,0.00029203,7]
[425056222,1781447503000,-226.97449586,0.00029203,7]
[425056221,1781447503000,-229.12853182,0.00029203,7]
[425056202,1781447503000,-323.21,0.00029172,2]
[425056217,1781447503000,-355.99057305,0.000292,7]
[425056204,1781447503000,-1027.4708,0.00029178,8]
[425056174,1781447503000,-2104.15,0.00029041,8]
[425056191,1781447503000,-500.0,0.00029041,8]
[425056225,1781447503000,-236.77061662,0.00029203,7]
[425056168,1781447503000,-1648.13,0.00029041,8]
[425056170,1781447503000,-861.57,0.00029041,8]
[425056169,1781447503000,-955.12,0.00029041,8]
[425056171,1781447503000,-577.21,0.00029041,8]
[425056167,1781447503000,-5289.14,0.00029041,8]
[425056173,1781447503000,-500.0,0.00029041,8]
[425056180,1781447503000,-500.0,0.00029041,8]
[425056183,1781447503000,-500.0,0.00029041,8]
[425056181,1781447503000,-500.0,0.00029041,8]
[425056182,1781447503000,-1133.48,0.00029041,8]
[425056185,1781447503000,-922.21,0.00029041,8]
[425056196,1781447503000,-328.7,0.00029051,7]
[425056184,1781447503000,-500.0,0.00029041,8]
[425056178,1781447503000,-500.0,0.00029041,8]
[425056177,1781447503000,-500.0,0.00029041,8]
[425056175,1781447503000,-1609.77,0.00029041,8]
[425056176,1781447503000,-800.7,0.00029041,8]
[425056179,1781447503000,-921.05,0.00029041,8]
[425056186,1781447503000,-500.0,0.00029041,8]
[425056190,1781447503000,-500.0,0.00029041,8]
[425056187,1781447503000,-500.0,0.00029041,8]
[425056193,1781447503000,-741.37,0.00029041,8]
[425056189,1781447503000,-479.37902829,0.00029041,8]
[425056192,1781447503000,-837.18,0.00029041,8]
[425056188,1781447503000,-500.0,0.00029041,8]
[425056172,1781447503000,-500.0,0.00029041,8]
[425056223,1781447503000,-256.80241149,0.00029203,5]
[425056227,1781447503000,-185.79503162,0.00029203,7]
[425056226,1781447503000,-215.89348788,0.00029203,7]
[425056267,1781447503000,-188.73336702,0.00029235,7]
[425056256,1781447503000,-233.93721269,0.00029232,7]
[425056259,1781447503000,-258.54113869,0.00029232,7]
[425056257,1781447503000,-246.90310869,0.00029232,7]
[425056260,1781447503000,-238.02392236,0.00029232,7]
[425056262,1781447503000,-323.33,0.00029232,7]
[425056261,1781447503000,-229.50719628,0.00029232,7]
[425056264,1781447503000,-230.8755076,0.00029235,7]
[425056258,1781447503000,-226.3028237,0.00029232,7]
[425056263,1781447503000,-328.82,0.00029232,7]
[425056268,1781447503000,-231.10529136,0.00029235,7]
[425056278,1781447503000,-500.0,0.00029315,8]
[425056266,1781447503000,-194.53430265,0.00029235,7]
[425056275,1781447503000,-667.37624602,0.00029314,8]
[425056270,1781447503000,-524.28592092,0.00029252,2]
[425056279,1781447503000,-569.09,0.00029315,8]
[425056269,1781447503000,-292.20634171,0.00029252,2]
[425056277,1781447503000,-2287.07,0.00029315,8]
[425056273,1781447503000,-1033.70647308,0.00029266,30]
[425056272,1781447503000,-352.00662176,0.00029252,2]
[425056276,1781447503000,-667.37624602,0.00029314,8]
[425056281,1781447503000,-706.5,0.00029315,8]
[425056283,1781447503000,-500.0,0.00029315,8]
[425056280,1781447503000,-1290.4,0.00029315,8]
[425056282,1781447503000,-957.59,0.00029315,8]
[425056284,1781447503000,-500.0,0.00029315,8]
[425056274,1781447503000,-1791.15813918,0.00029278,2]
[425056265,1781447503000,-194.28520729,0.00029235,7]
[425056271,1781447503000,-311.57099638,0.00029252,2]
[425056254,1781447503000,-268.41406567,0.00029232,7]
[425056255,1781447503000,-265.42018416,0.00029232,7]
[425056224,1781447503000,-242.02263463,0.00029203,7]
[425056229,1781447503000,-210.33571224,0.00029203,7]
[425056231,1781447503000,-239.88644449,0.00029203,7]
[425056230,1781447503000,-340.92779575,0.00029203,7]
[425056241,1781447503000,-228.86042514,0.00029207,7]
[425056242,1781447503000,-471.36135519,0.00029207,7]
[425056237,1781447503000,-244.4140766,0.00029204,7]
[425056236,1781447503000,-293.95731805,0.00029203,7]
[425056234,1781447503000,-195.92670585,0.00029203,7]
[425056233,1781447503000,-291.16496442,0.00029203,7]
[425056235,1781447503000,-273.18811198,0.00029203,7]
[425056240,1781447503000,-235.96364003,0.00029207,7]
[425056238,1781447503000,-200.52676052,0.00029207,7]
[425056220,1781447503000,-230.25549641,0.00029203,7]
[425056250,1781447503000,-248.91194336,0.00029232,7]
[425056232,1781447503000,-324.49593578,0.00029203,7]
[425056243,1781447503000,-552.86826977,0.00029215,7]
[425056244,1781447503000,-543.50167782,0.00029215,7]
[425056246,1781447503000,-572.51492448,0.00029215,7]
[425056245,1781447503000,-583.74079632,0.00029215,7]
[425056247,1781447503000,-482.32614988,0.00029215,7]
[425056251,1781447503000,-201.39270584,0.00029232,7]
[425056253,1781447503000,-234.5771294,0.00029232,7]
[425056239,1781447503000,-157.62595201,0.00029207,2]
[425056248,1781447503000,-502.71469143,0.00029215,7]
[425056249,1781447503000,-162.68426499,0.00029232,7]
[425056252,1781447503000,-243.85298954,0.00029232,7]
[425056322,1781447504000,-738.99,0.00029315,8]
[425056327,1781447504000,-500.0,0.00029315,8]
[425056309,1781447504000,-614.99,0.00029315,8]
[425056323,1781447504000,-1067.78,0.00029315,8]
[425056326,1781447504000,-700.76,0.00029315,8]
[425056324,1781447504000,-500.0,0.00029315,8]
[425056319,1781447504000,-1007.63,0.00029315,8]
[425056318,1781447504000,-985.3,0.00029315,8]
[425056325,1781447504000,-500.0,0.00029315,8]
[425056321,1781447504000,-500.0,0.00029315,8]
[425056317,1781447504000,-1200.69,0.00029315,8]
[425056329,1781447504000,-1224.99,0.00029315,8]
[425056320,1781447504000,-1573.21,0.00029315,8]
[425056339,1781447504000,-500.0,0.00029315,8]
[425056332,1781447504000,-500.0,0.00029315,8]
[425056330,1781447504000,-508.34,0.00029315,8]
[425056340,1781447504000,-500.0,0.00029315,8]
[425056328,1781447504000,-500.0,0.00029315,8]
[425056334,1781447504000,-926.37,0.00029315,8]
[425056333,1781447504000,-514.54,0.00029315,8]
[425056338,1781447504000,-735.2,0.00029315,8]
[425056335,1781447504000,-578.78,0.00029315,8]
[425056336,1781447504000,-500.0,0.00029315,8]
[425056337,1781447504000,-951.06,0.00029315,8]
[425056341,1781447504000,-553.9,0.00029315,8]
[425056344,1781447504000,-1121.81,0.00029315,8]
[425056343,1781447504000,-500.0,0.00029315,8]
[425056331,1781447504000,-1285.32,0.00029315,8]
[425056306,1781447504000,-500.0,0.00029315,8]
[425056291,1781447504000,-512.97,0.00029315,8]
[425056311,1781447504000,-500.0,0.00029315,8]
[425056342,1781447504000,-524.27,0.00029315,8]
[425056285,1781447504000,-510.86,0.00029315,8]
[425056288,1781447504000,-500.0,0.00029315,8]
[425056286,1781447504000,-500.0,0.00029315,8]
[425056287,1781447504000,-500.0,0.00029315,8]
[425056290,1781447504000,-500.0,0.00029315,8]
[425056289,1781447504000,-1013.37,0.00029315,8]
[425056302,1781447504000,-542.62,0.00029315,8]
[425056301,1781447504000,-1280.28,0.00029315,8]
[425056298,1781447504000,-500.0,0.00029315,8]
[425056297,1781447504000,-500.0,0.00029315,8]
[425056292,1781447504000,-630.1,0.00029315,8]
[425056293,1781447504000,-558.29,0.00029315,8]
[425056310,1781447504000,-736.33,0.00029315,8]
[425056294,1781447504000,-925.25,0.00029315,8]
[425056299,1781447504000,-500.0,0.00029315,8]